fUST/lending_fUST_20250108
["ID","MTS","AMOUNT","RATE_DAILY","PERIOD"]
[348008932,1736266236242,-150.0,0.000189,2]
[348008933,1736266236252,-168.21841569,0.00019078,2]
[348008934,1736266236262,-384.24922993,0.00019078,2]
[348008935,1736266236271,-2679.46546658,0.00019078,2]
[348008936,1736266236281,-420.0,0.000191,8]
[348008937,1736266236291,-300.0,0.00019176,2]
[348008938,1736266236300,-152.023,0.00019177,2]
[348008939,1736266236310,-500.0,0.00019177,2]
[348008940,1736266236321,-419.15582618,0.00019177,2]
[348008941,1736266236331,-500.0,0.00019177,2]
[348008942,1736266236341,-483.71536429,0.00019177,2]
[348008943,1736266236352,-500.0,0.00019177,2]
[348008944,1736266236362,-500.0,0.00019177,2]
[348008945,1736266236372,-483.56896602,0.00019177,2]
[348008946,1736266236382,-630.3059345,0.00019177,2]
[348008947,1736266236391,-376.34211094,0.00019177,2]
[348008948,1736266236401,-645.77223282,0.00019178,2]
[348008949,1736266236414,-500.0,0.00019178,2]
[348008950,1736266236424,-500.0,0.00019178,2]
[348008951,1736266236434,-500.0,0.00019178,2]
[348008952,1736266236444,-500.0,0.00019178,2]
[348008953,1736266236455,-500.0,0.00019178,2]
[348008954,1736266236465,-390.1802727,0.00019178,2]
[348008955,1736266236475,-500.0,0.00019178,2]
[348008956,1736266236485,-374.00786065,0.00019178,2]
[348008957,1736266236494,-500.0,0.00019178,2]
[348008958,1736266236506,-500.0,0.00019178,2]
[348008959,1736266236515,-500.0,0.00019178,2]
[348008960,1736266236528,-500.0,0.00019178,2]
[348008961,1736266236538,-500.0,0.00019178,2]
[348008962,1736266236548,-500.0,0.00019178,2]
[348008963,1736266236559,-500.0,0.00019178,2]
[348008964,1736266236568,-500.0,0.00019178,2]
[348008965,1736266236578,-500.0,0.00019178,2]
[348008966,1736266236588,-500.0,0.00019178,2]
[348008967,1736266236597,-307.50005855,0.00019178,2]
[348008968,1736266236607,-500.0,0.00019178,2]
[348008969,1736266236618,-500.0,0.00019178,2]
[348008970,1736266236628,-500.0,0.00019178,2]
[348008971,1736266236638,-500.0,0.00019178,2]
[348008972,1736266236649,-500.0,0.00019178,2]
[348008973,1736266236658,-500.0,0.00019178,2]
[348008974,1736266236668,-500.0,0.00019178,2]
[348008975,1736266236678,-500.0,0.00019178,2]
[348008976,1736266236688,-500.0,0.00019178,2]
[348008977,1736266236701,-300.71718422,0.00019178,2]
[348008978,1736266236716,-500.0,0.00019178,2]
[348008979,1736266236726,-500.0,0.00019178,2]
[348008980,1736266236736,-500.0,0.00019178,2]
[348008981,1736266236746,-114.6793513,0.00019178,2]
[348008982,1736266236760,-385.3206487,0.00019178,2]
[348008983,1736266236771,-500.0,0.00019178,2]
[348008984,1736266236782,-500.0,0.00019178,2]
[348008985,1736266236793,-500.0,0.00019178,2]
[348008986,1736266236804,-500.0,0.00019178,2]
[348008987,1736266236814,-286.55054177,0.00019178,2]
[348008988,1736266236827,-213.44945823,0.00019178,2]
[348008989,1736266236837,-500.0,0.00019178,2]
[348008990,1736266236847,-500.0,0.00019178,2]
[348008991,1736266236857,-500.0,0.00019178,2]
[348008992,1736266236867,-500.0,0.00019178,2]
[348008993,1736266236878,-500.0,0.00019178,2]
[348008994,1736266236888,-500.0,0.00019178,2]
[348008995,1736266236898,-500.0,0.00019178,2]
[348008996,1736266236908,-334.02760616,0.00019178,2]
[348008997,1736266236925,-165.97239384,0.00019178,2]
[348008998,1736266236935,-500.0,0.00019178,2]
[348008999,1736266236945,-8.80227973,0.00019178,2]
[348009000,1736266236962,-491.19772027,0.00019178,2]
[348009001,1736266236972,-229.17306563,0.00019178,2]
[348009002,1736266236984,-270.82693437,0.00019178,2]
[348009003,1736266236994,-62.66195344,0.00019178,2]
[348009005,1736266238878,-437.33804656,0.00019178,2]
[348009006,1736266238889,-397.33101919,0.00019178,2]
[348009007,1736266238899,-593.0,0.00019178,2]
[348009008,1736266238909,-500.0,0.00019178,2]
[348009009,1736266238919,-2596.6846857,0.00019178,2]
[348009010,1736266238932,-2151.2853143,0.00019178,2]
[348009011,1736266238942,-500.0,0.00019178,2]
[348009012,1736266238952,-500.0,0.00019178,2]
[348009013,1736266238965,-500.0,0.00019178,2]
[348009014,1736266238975,-500.0,0.00019178,2]
[348009015,1736266238985,-500.0,0.00019178,2]
[348009016,1736266238996,-882.26,0.00019178,2]
[348009017,1736266239006,-500.0,0.00019178,2]
[348009018,1736266239016,-500.0,0.00019178,2]
[348009019,1736266239026,-815.75,0.00019178,2]
[348009020,1736266239035,-500.0,0.00019178,2]
[348009021,1736266239045,-500.0,0.00019178,2]
[348009022,1736266239055,-500.0,0.00019178,2]
[348009023,1736266239064,-500.0,0.00019178,2]
[348009024,1736266239074,-2326.84,0.00019178,2]
[348009026,1736266239084,-500.0,0.00019178,2]
[348009028,1736266239094,-500.0,0.00019178,2]
[348009029,1736266239104,-500.0,0.00019178,2]
[348009031,1736266239113,-500.0,0.00019178,2]
[348009033,1736266239122,-500.0,0.00019178,2]
[348009034,1736266239132,-500.0,0.00019178,2]
[348009035,1736266239142,-500.0,0.00019178,2]
[348009036,1736266239151,-777.37,0.00019178,2]
[348009037,1736266239161,-500.0,0.00019178,2]
[348009038,1736266239170,-500.0,0.00019178,2]
[348009039,1736266239179,-500.0,0.00019178,2]
[348009040,1736266239189,-500.0,0.00019178,2]
[348009041,1736266239199,-533.22,0.00019178,2]
[348009042,1736266239211,-500.0,0.00019178,2]
[348009043,1736266239220,-509.56546007,0.00019178,2]
[348009044,1736266239230,-500.0,0.00019178,2]
[348009045,1736266239239,-548.67,0.00019178,2]
[348009046,1736266239248,-532.79,0.00019178,2]
[348009047,1736266239258,-500.0,0.00019178,2]
[348009048,1736266239267,-500.0,0.00019178,2]
[348009049,1736266239277,-310.71504785,0.00019178,2]
[348009050,1736266239286,-500.0,0.00019178,2]
[348009051,1736266239295,-504.24,0.00019178,2]
[348009052,1736266239305,-500.0,0.00019178,2]
[348009053,1736266239315,-500.0,0.00019178,2]
[348009054,1736266239325,-500.0,0.00019178,2]
[348009055,1736266239334,-500.0,0.00019178,2]
[348009056,1736266239344,-500.0,0.00019178,2]
[348009057,1736266239353,-500.0,0.00019178,2]
[348009058,1736266239362,-500.0,0.00019178,2]
[348009059,1736266239372,-500.0,0.00019178,2]
[348009060,1736266239381,-500.0,0.00019178,2]
[348009061,1736266239391,-500.0,0.00019178,2]
[348009062,1736266239400,-500.0,0.00019178,2]
[348009063,1736266239410,-500.0,0.00019178,2]
[348009064,1736266239420,-500.0,0.00019178,2]
[348009065,1736266239430,-500.0,0.00019178,2]
[348009066,1736266239439,-500.0,0.00019178,2]
[348009067,1736266239449,-500.0,0.00019178,2]
[348009068,1736266239462,-500.0,0.00019178,2]
[348009069,1736266239472,-500.0,0.00019178,2]
[348009070,1736266239482,-511.71731968,0.00019178,2]
[348009071,1736266239491,-500.0,0.00019178,2]
[348009072,1736266239501,-500.0,0.00019178,2]
[348009073,1736266239511,-500.0,0.00019178,2]
[348009074,1736266239521,-500.0,0.00019178,2]
[348009075,1736266239530,-500.0,0.00019178,2]
[348009076,1736266239540,-500.0,0.00019178,2]
[348009077,1736266239549,-500.0,0.00019178,2]
[348009078,1736266239558,-516.61,0.00019178,2]
[348009079,1736266239568,-500.0,0.00019178,2]
[348009080,1736266239577,-500.0,0.00019178,2]
[348009081,1736266239587,-500.0,0.00019178,2]
[348009082,1736266239597,-500.0,0.00019178,2]
[348009083,1736266239607,-388.97729815,0.00019178,2]
[348009084,1736266239616,-500.0,0.00019178,2]
[348009085,1736266239626,-500.0,0.00019178,2]
[348009086,1736266239635,-500.0,0.00019178,2]
[348009087,1736266239645,-504.15,0.00019178,2]
[348009088,1736266239654,-242.34224118,0.00019178,2]
[348009089,1736266239664,-500.0,0.00019178,2]
[348009090,1736266239674,-500.0,0.00019178,2]
[348009091,1736266239683,-500.0,0.00019178,2]
[348009092,1736266239695,-500.0,0.00019178,2]
[348009093,1736266239705,-500.0,0.00019178,2]
[348009094,1736266239715,-500.0,0.00019178,2]
[348009095,1736266239724,-500.0,0.00019178,2]
[348009096,1736266239734,-500.0,0.00019178,2]
[348009097,1736266239743,-500.0,0.00019178,2]
[348009098,1736266239753,-500.0,0.00019178,2]
[348009099,1736266239763,-500.0,0.00019178,2]
[348009100,1736266239774,-970.89,0.00019178,2]
[348009101,1736266239784,-500.0,0.00019178,2]
[348009102,1736266239795,-500.0,0.00019178,2]
[348009103,1736266239804,-500.0,0.00019178,2]
[348009104,1736266239814,-500.0,0.00019178,2]
[348009105,1736266239824,-562.2,0.00019178,2]
[348009106,1736266239833,-500.0,0.00019178,2]
[348009107,1736266239844,-500.0,0.00019178,2]
[348009108,1736266239853,-500.0,0.00019178,2]
[348009109,1736266239863,-500.0,0.00019178,2]
[348009110,1736266239873,-500.0,0.00019178,2]
[348009111,1736266239882,-500.0,0.00019178,2]
[348009112,1736266239892,-721.35,0.00019178,2]
[348009113,1736266239901,-870.46,0.00019178,2]
[348009114,1736266239912,-500.0,0.00019178,2]
[348009115,1736266239922,-500.0,0.00019178,2]
[348009116,1736266239931,-500.0,0.00019178,2]
[348009117,1736266239941,-538.35,0.00019178,2]
[348009118,1736266239951,-500.0,0.00019178,2]
[348009119,1736266239963,-500.0,0.00019178,2]
[348009121,1736266239972,-500.0,0.00019178,2]
[348009122,1736266239982,-520.68,0.00019178,2]
[348009123,1736266239991,-500.0,0.00019178,2]
[348009124,1736266240001,-500.0,0.00019178,2]
[348009125,1736266240011,-500.0,0.00019178,2]
[348009126,1736266240021,-1004.93,0.00019178,2]
[348009127,1736266240031,-500.0,0.00019178,2]
[348009128,1736266240041,-500.0,0.00019178,2]
[348009129,1736266240051,-500.0,0.00019178,2]
[348009130,1736266240060,-500.0,0.00019178,2]
[348009131,1736266240070,-500.0,0.00019178,2]
[348009132,1736266240080,-503.82,0.00019178,2]
[348009133,1736266240090,-570.43,0.00019178,2]
[348009134,1736266240100,-500.0,0.00019178,2]
[348009135,1736266240109,-500.0,0.00019178,2]
[348009136,1736266240119,-500.0,0.00019178,2]
[348009137,1736266240129,-1855.57,0.00019178,2]
[348009138,1736266240138,-802.2,0.00019178,2]
[348009139,1736266240147,-500.0,0.00019178,2]
[348009140,1736266240157,-500.0,0.00019178,2]
[348009141,1736266240167,-500.0,0.00019178,2]
[348009142,1736266240176,-604.84,0.00019178,2]
[348009143,1736266240186,-500.0,0.00019178,2]
[348009144,1736266240196,-4989.1,0.00019178,2]
[348009145,1736266240205,-500.0,0.00019178,2]
[348009146,1736266240215,-565.00843894,0.00019178,2]
[348009147,1736266240225,-300.65997421,0.00019178,2]
[348009148,1736266240234,-500.0,0.00019178,2]
[348009149,1736266240243,-500.0,0.00019178,2]
[348009150,1736266240253,-23256.33,0.00019178,2]
[348009151,1736266240262,-500.0,0.00019178,2]
[348009152,1736266240272,-500.0,0.00019178,2]
[348009153,1736266240281,-893.66,0.00019178,2]
[348009154,1736266240291,-1213.39,0.00019178,2]
[348009155,1736266240301,-500.0,0.00019178,2]
[348009156,1736266240311,-500.0,0.00019178,2]
[348009157,1736266240320,-698.52,0.00019178,2]
[348009158,1736266240329,-500.0,0.00019178,2]
[348009159,1736266240339,-500.0,0.00019178,2]
[348009160,1736266240348,-711.29,0.00019178,2]
[348009161,1736266240357,-610.53,0.00019178,2]
[348009162,1736266240367,-2967.48,0.00019178,2]
[348009163,1736266240377,-1139.38,0.00019178,2]
[348009164,1736266240386,-505.74,0.00019178,2]
[348009165,1736266240396,-935.45,0.00019178,2]
[348009166,1736266240407,-500.0,0.00019178,2]
[348009167,1736266240417,-500.0,0.00019178,2]
[348009168,1736266240427,-500.0,0.00019178,2]
[348009169,1736266240437,-500.0,0.00019178,2]
[348009170,1736266240446,-500.0,0.00019178,2]
[348009171,1736266240456,-500.0,0.00019178,2]
[348009172,1736266240468,-500.0,0.00019178,2]
[348009173,1736266240478,-500.0,0.00019178,2]
[348009174,1736266240486,-500.0,0.00019178,2]
[348009175,1736266240495,-500.0,0.00019178,2]
[348009176,1736266240505,-1103.46,0.00019178,2]
[348009177,1736266240514,-500.0,0.00019178,2]
[348009178,1736266240526,-500.0,0.00019178,2]
[348009179,1736266240536,-500.0,0.00019178,2]
[348009180,1736266240545,-3991.63,0.00019178,2]
[348009181,1736266240555,-500.0,0.00019178,2]
[348009182,1736266240566,-500.0,0.00019178,2]
[348009183,1736266240576,-500.0,0.00019178,2]
[348009184,1736266240586,-500.0,0.00019178,2]
[348009185,1736266240596,-500.0,0.00019178,2]
[348009186,1736266240605,-2060.57,0.00019178,2]
[348009187,1736266240615,-500.0,0.00019178,2]
[348009188,1736266240624,-500.0,0.00019178,2]
[348009189,1736266240634,-500.0,0.00019178,2]
[348009190,1736266240644,-500.0,0.00019178,2]
[348009191,1736266240653,-500.0,0.00019178,2]
[348009192,1736266240663,-810.01,0.00019178,2]
[348009193,1736266240672,-500.0,0.00019178,2]
[348009194,1736266240683,-500.0,0.00019178,2]
[348009195,1736266240692,-500.0,0.00019178,2]
[348009196,1736266240704,-500.0,0.00019178,2]
[348009197,1736266240717,-768.95856921,0.00019178,7]
[348009198,1736266240727,-500.0,0.00019178,2]
[348009199,1736266240737,-500.0,0.00019178,2]
[348009201,1736266240746,-754.37,0.00019178,2]
[348009203,1736266240756,-500.0,0.00019178,2]
[348009205,1736266240765,-500.0,0.00019178,2]
[348009207,1736266240776,-1253.0,0.00019178,2]
[348009209,1736266240785,-500.0,0.00019178,2]
[348009211,1736266240795,-500.0,0.00019178,2]
[348009213,1736266240805,-1703.84,0.00019178,2]
[348009215,1736266240815,-500.0,0.00019178,2]
[348009217,1736266240825,-500.0,0.00019178,2]
[348009219,1736266240834,-500.0,0.00019178,2]
[348009221,1736266240844,-500.0,0.00019178,2]
[348009223,1736266240854,-478.90033639,0.00019178,2]
[348009248,1736266241103,-21.09966361,0.00019178,2]
[348009250,1736266241113,-500.0,0.00019178,2]
[348009252,1736266241122,-500.0,0.00019178,2]
[348009254,1736266241131,-500.0,0.00019178,2]
[348009256,1736266241140,-500.0,0.00019178,2]
[348009258,1736266241150,-500.0,0.00019178,2]
[348009260,1736266241159,-500.0,0.00019178,2]
[348009262,1736266241168,-1685.27,0.00019178,2]
[348009264,1736266241178,-199.08033639,0.00019178,2]
[348009266,1736266241190,-398.94966361,0.00019178,2]
[348009268,1736266241199,-500.0,0.00019178,2]
[348009270,1736266241209,-500.0,0.00019178,2]
[348009272,1736266241218,-500.0,0.00019178,2]
[348009274,1736266241227,-164.568037,0.00019178,2]
[348009276,1736266241236,-1340.92,0.000192,2]
[348009278,1736266241245,-150.0,0.00019252,2]
[348009280,1736266241254,-535.0,0.00019252,2]
[348009282,1736266241263,-2081.0,0.00019252,2]
[348009284,1736266241272,-2317.0,0.00019252,2]
[348009286,1736266241281,-96.54181345,0.00019413,4]
[348009289,1736266241304,-54.45818655,0.00019413,4]
[348009291,1736266241313,-44.54181345,0.00019415,2]
[348009293,1736266241325,-255.45818555,0.00019415,2]
[348009295,1736266241334,-500.0,0.00019452,3]
[348009297,1736266241344,-500.0,0.00019452,3]
[348009299,1736266241353,-500.0,0.00019452,3]
[348009301,1736266241363,-500.0,0.00019452,3]
[348009303,1736266241372,-500.0,0.00019452,3]
[348009318,1736266241504,-500.0,0.00019452,3]
[348009320,1736266241514,-500.0,0.00019452,3]
[348009322,1736266241523,-500.0,0.00019452,3]
[348009324,1736266241532,-500.0,0.00019452,3]
[348009326,1736266241541,-533.58934824,0.00019452,3]
[348009328,1736266241551,-500.0,0.00019452,3]
[348009330,1736266241560,-500.0,0.00019452,3]
[348009332,1736266241570,-500.0,0.00019452,3]
[348009334,1736266241579,-500.0,0.00019452,3]
[348009336,1736266241589,-500.0,0.00019452,3]
[348009338,1736266241598,-500.0,0.00019452,3]
[348009340,1736266241607,-500.0,0.00019452,3]
[348009342,1736266241616,-500.0,0.00019452,3]
[348009344,1736266241625,-408.92383373,0.00019452,3]
[348009346,1736266241635,-593.0,0.00019452,3]
[348009348,1736266241644,-2373.64702338,0.00019452,3]
[348009350,1736266241655,-2374.32297662,0.00019452,3]
[348009352,1736266241664,-500.0,0.00019452,3]
[348009354,1736266241674,-500.0,0.00019452,3]
[348009356,1736266241687,-882.26,0.00019452,3]
[348009358,1736266241697,-815.75,0.00019452,3]
[348009360,1736266241706,-1551.66702338,0.00019452,3]
[348009362,1736266241718,-775.17297662,0.00019452,3]
[348009364,1736266241728,-500.0,0.00019452,3]
[348009366,1736266241737,-500.0,0.00019452,3]
[348009368,1736266241746,-777.37,0.00019452,3]
[348009369,1736266241755,-533.22,0.00019452,3]
[348009370,1736266241764,-548.67,0.00019452,3]
[348009371,1736266241773,-532.79,0.00019452,3]
[348009372,1736266241782,-504.24,0.00019452,3]
[348009373,1736266241794,-500.0,0.00019452,3]
[348009374,1736266241804,-500.0,0.00019452,3]
[348009375,1736266241813,-500.0,0.00019452,3]
[348009376,1736266241823,-530.32049551,0.00019452,3]
[348009377,1736266241832,-500.0,0.00019452,3]
[348009378,1736266241841,-516.61,0.00019452,3]
[348009379,1736266241850,-500.0,0.00019452,3]
[348009380,1736266241859,-500.0,0.00019452,3]
[348009381,1736266241868,-500.0,0.00019452,3]
[348009382,1736266241877,-504.15,0.00019452,3]
[348009383,1736266241887,-500.0,0.00019452,3]
[348009384,1736266241896,-500.0,0.00019452,3]
[348009385,1736266241905,-500.0,0.00019452,3]
[348009386,1736266241914,-500.0,0.00019452,3]
[348009387,1736266241923,-970.89,0.00019452,3]
[348009389,1736266241933,-500.0,0.00019452,3]
[348009390,1736266241943,-562.2,0.00019452,3]
[348009392,1736266241952,-500.0,0.00019452,3]
[348009394,1736266241963,-500.0,0.00019452,3]
[348009396,1736266241973,-721.35,0.00019452,3]
[348009398,1736266241982,-500.0,0.00019452,3]
[348009400,1736266241992,-500.0,0.00019452,3]
[348009402,1736266242003,-538.35,0.00019452,3]
[348009404,1736266242012,-500.0,0.00019452,3]
[348009406,1736266242022,-520.68,0.00019452,3]
[348009408,1736266242031,-500.0,0.00019452,3]
[348009410,1736266242040,-500.0,0.00019452,3]
[348009412,1736266242050,-500.0,0.00019452,3]
[348009414,1736266242059,-1004.93,0.00019452,3]
[348009416,1736266242069,-500.0,0.00019452,3]
[348009418,1736266242079,-503.82,0.00019452,3]
[348009420,1736266242089,-500.0,0.00019452,3]
[348009422,1736266242098,-570.43,0.00019452,3]
[348009424,1736266242107,-500.0,0.00019452,3]
[348009426,1736266242116,-1855.57,0.00019452,3]
[348009428,1736266242126,-802.2,0.00019452,3]
[348009430,1736266242135,-604.84,0.00019452,3]
[348009432,1736266242144,-4989.1,0.00019452,3]
[348009434,1736266242154,-500.0,0.00019452,3]
[348009436,1736266242163,-23256.33,0.00019452,3]
[348009438,1736266242173,-500.0,0.00019452,3]
[348009440,1736266242184,-500.0,0.00019452,3]
[348009442,1736266242194,-893.66,0.00019452,3]
[348009444,1736266242204,-1213.39,0.00019452,3]
[348009446,1736266242219,-500.0,0.00019452,3]
[348009448,1736266242230,-698.52,0.00019452,3]
[348009450,1736266242240,-500.0,0.00019452,3]
[348009452,1736266242250,-711.29,0.00019452,3]
[348009454,1736266242260,-610.53,0.00019452,3]
[348009456,1736266242270,-2967.48,0.00019452,3]
[348009458,1736266242280,-1139.38,0.00019452,3]
[348009460,1736266242290,-505.74,0.00019452,3]
[348009462,1736266242300,-935.45,0.00019452,3]
[348009464,1736266242310,-500.0,0.00019452,3]
[348009466,1736266242321,-500.0,0.00019452,3]
[348009468,1736266242332,-505.21051692,0.00019452,3]
[348009470,1736266242342,-1103.46,0.00019452,3]
[348009472,1736266242352,-500.0,0.00019452,3]
[348009474,1736266242361,-500.0,0.00019452,3]
[348009476,1736266242372,-3991.63,0.00019452,3]
[348009478,1736266242381,-500.0,0.00019452,3]
[348009480,1736266242391,-500.0,0.00019452,3]
[348009482,1736266242400,-2060.57,0.00019452,3]
[348009484,1736266242409,-500.0,0.00019452,3]
[348009486,1736266242419,-500.0,0.00019452,2]
[348009488,1736266242428,-810.01,0.00019452,3]
[348009490,1736266242437,-500.0,0.00019452,3]
[348009492,1736266242447,-500.0,0.00019452,3]
[348009494,1736266242455,-500.0,0.00019452,3]
[348009495,1736266242469,-500.0,0.00019452,3]
[348009497,1736266242479,-754.37,0.00019452,3]
[348009500,1736266242488,-500.0,0.00019452,3]
[348009501,1736266242498,-1253.0,0.00019452,3]
[348009503,1736266242508,-1703.84,0.00019452,3]
[348009505,1736266242518,-500.0,0.00019452,3]
[348009508,1736266242528,-500.0,0.00019452,3]
[348009510,1736266242537,-500.0,0.00019452,3]
[348009512,1736266242547,-500.0,0.00019452,3]
[348009513,1736266242556,-500.0,0.00019452,2]
[348009515,1736266242565,-500.0,0.00019452,3]
[348009517,1736266242575,-500.0,0.00019452,3]
[348009520,1736266242584,-1685.27,0.00019452,3]
[348009521,1736266242593,-500.0,0.00019452,3]
[348009523,1736266242603,-598.03,0.00019452,3]
[348009525,1736266242612,-500.0,0.00019452,3]
[348009527,1736266242621,-500.0,0.00019452,3]
[348009529,1736266242631,-500.0,0.00019452,3]
[348009531,1736266242640,-384.24922993,0.00019638,2]
[348009534,1736266242650,-1200.0,0.0001965,2]
[348009535,1736266242659,-151.0,0.00019698,5]
[348009538,1736266242668,-500.0,0.00019726,3]
[348009539,1736266242679,-500.0,0.00019726,3]
[348009541,1736266242689,-500.0,0.00019726,3]
[348009543,1736266242699,-500.0,0.00019726,3]
[348009545,1736266242711,-500.0,0.00019726,3]
[348009547,1736266242722,-500.0,0.00019726,3]
[348009549,1736266242731,-500.0,0.00019726,3]
[348009551,1736266242740,-500.0,0.00019726,3]
[348009553,1736266242749,-500.0,0.00019726,3]
[348009555,1736266242758,-500.0,0.00019726,3]
[348009557,1736266242769,-500.0,0.00019726,3]
[348009559,1736266242778,-500.0,0.00019726,3]
[348009561,1736266242787,-500.0,0.00019726,3]
[348009563,1736266242798,-500.0,0.00019726,3]
[348009565,1736266242808,-500.0,0.00019726,3]
[348009567,1736266242818,-593.0,0.00019726,3]
[348009569,1736266242827,-500.0,0.00019726,3]
[348009571,1736266242837,-4747.97,0.00019726,3]
[348009573,1736266242846,-500.0,0.00019726,3]
[348009576,1736266242855,-882.26,0.00019726,3]
[348009578,1736266242864,-815.75,0.00019726,3]
[348009580,1736266242874,-2326.84,0.00019726,3]
[348009582,1736266242883,-500.0,0.00019726,3]
[348009584,1736266242892,-500.0,0.00019726,3]
[348009586,1736266242902,-777.37,0.00019726,3]
[348009589,1736266242911,-533.22,0.00019726,3]
[348009592,1736266242920,-548.67,0.00019726,3]
[348009594,1736266242929,-532.79,0.00019726,3]
[348009596,1736266242939,-504.24,0.00019726,3]
[348009598,1736266242948,-500.0,0.00019726,3]
[348009600,1736266242959,-500.0,0.00019726,3]
[348009603,1736266242969,-500.0,0.00019726,3]
[348009605,1736266242979,-516.61,0.00019726,3]
[348009608,1736266242990,-500.0,0.00019726,3]
[348009611,1736266242999,-500.0,0.00019726,3]
[348009614,1736266243008,-504.15,0.00019726,3]
[348009616,1736266243017,-311.76118236,0.00019726,3]
[348009618,1736266243027,-500.0,0.00019726,3]
[348009620,1736266243036,-500.0,0.00019726,3]
[348009622,1736266243045,-500.0,0.00019726,3]
[348009624,1736266243055,-970.89,0.00019726,3]
[348009626,1736266243064,-500.0,0.00019726,3]
[348009628,1736266243074,-562.2,0.00019726,3]
[348009630,1736266243085,-500.0,0.00019726,3]
[348009632,1736266243095,-500.0,0.00019726,3]
[348009634,1736266243106,-721.35,0.00019726,3]
[348009638,1736266243116,-500.0,0.00019726,3]
[348009643,1736266243125,-500.0,0.00019726,3]
[348009647,1736266243135,-538.35,0.00019726,3]
[348009648,1736266243144,-500.0,0.00019726,3]
[348009650,1736266243154,-520.68,0.00019726,3]
[348009652,1736266243163,-500.0,0.00019726,3]
[348009654,1736266243173,-500.0,0.00019726,3]
[348009657,1736266243186,-500.0,0.00019726,3]
[348009659,1736266243195,-1004.93,0.00019726,3]
[348009661,1736266243204,-500.0,0.00019726,3]
[348009663,1736266243217,-503.82,0.00019726,3]
[348009665,1736266243227,-570.43,0.00019726,3]
[348009667,1736266243237,-500.0,0.00019726,3]
[348009669,1736266243247,-1855.57,0.00019726,3]
[348009671,1736266243256,-802.2,0.00019726,3]
[348009673,1736266243265,-604.84,0.00019726,3]
[348009675,1736266243274,-4989.1,0.00019726,3]
[348009677,1736266243283,-500.0,0.00019726,3]
[348009679,1736266243293,-23256.33,0.00019726,3]
[348009681,1736266243302,-249.81704654,0.00019726,3]
[348009683,1736266243311,-320.74414507,0.00019726,3]
[348009685,1736266243320,-893.66,0.00019726,3]
[348009687,1736266243330,-1213.39,0.00019726,3]
[348009689,1736266243339,-500.0,0.00019726,3]
[348009691,1736266243348,-698.52,0.00019726,3]
[348009693,1736266243358,-500.0,0.00019726,3]
[348009695,1736266243367,-711.29,0.00019726,3]
[348009697,1736266243376,-610.53,0.00019726,3]
[348009699,1736266243385,-2967.48,0.00019726,3]
[348009701,1736266243395,-1139.38,0.00019726,3]
[348009703,1736266243404,-505.74,0.00019726,3]
[348009705,1736266243414,-935.45,0.00019726,3]